[Event "Titled Tuesday Blitz May 23 Late 2023"]
[White "Perez Rodriguez, Jennifer"]
[Black "Javakhadze, Zurab"]
[WhiteFideId "3507831"]
[BlackFideId "13603647"]
[WhiteElo "2116"]
[BlackElo "2381"]
[Result "0-1"]
[Round "04"]
[TimeControl "180+2"]
[Date "2023.05.23"]
[WhiteClock "0:00:05"]
[BlackClock "0:00:35"]

1. e4 {[%clk 0:03:00]}  e5 {[%clk 0:03:00]} 2. Nc3 {[%clk 0:02:58]}  Nf6 {[%clk 0:02:59]} 3. f4 {[%clk 0:02:58]}  d5 {[%clk 0:03:00]} 4. fxe5 {[%clk 0:02:58]}  Nxe4 {[%clk 0:03:00]} 5. Qf3 {[%clk 0:02:57]}  Nxc3 {[%clk 0:03:01]} 6. bxc3 {[%clk 0:02:55]}  c5 {[%clk 0:03:00]} 7. Bb5+ {[%clk 0:02:49]}  Nc6 {[%clk 0:02:56]} 8. Ne2 {[%clk 0:02:50]}  Be7 {[%clk 0:02:50]} 9. O-O {[%clk 0:02:50]}  O-O {[%clk 0:02:50]} 10. d4 {[%clk 0:02:47]}  f6 {[%clk 0:02:40]} 11. Bxc6 {[%clk 0:02:21]}  bxc6 {[%clk 0:02:39]} 12. Qg3 {[%clk 0:02:11]}  fxe5 {[%clk 0:02:37]} 13. Bh6 {[%clk 0:02:05]}  Rxf1+ {[%clk 0:02:03]} 14. Rxf1 {[%clk 0:02:03]}  Bf8 {[%clk 0:02:03]} 15. dxe5 {[%clk 0:02:01]}  Ba6 {[%clk 0:01:58]} 16. Rf2 {[%clk 0:01:44]}  Rb8 {[%clk 0:01:43]} 17. h3 {[%clk 0:01:40]}  Qe8 {[%clk 0:01:43]} 18. e6 {[%clk 0:01:33]}  Rb7 {[%clk 0:01:34]} 19. Nf4 {[%clk 0:01:26]}  Bd6 {[%clk 0:01:12]} 20. Qg4 {[%clk 0:01:13]}  Kh8 {[%clk 0:00:57]} 21. Bg5 {[%clk 0:01:10]}  h6 {[%clk 0:00:54]} 22. Qh4 {[%clk 0:00:50]}  Rb1+ {[%clk 0:00:48]} 23. Kh2 {[%clk 0:00:49]}  Qxe6 {[%clk 0:00:47]} 24. g3 {[%clk 0:00:38]}  Qe1 {[%clk 0:00:41]} 25. Ng6+ {[%clk 0:00:16]}  Kh7 {[%clk 0:00:37]} 26. Nf8+ {[%clk 0:00:07]}  Bxf8 {[%clk 0:00:36]} 27. Kg2 {[%clk 0:00:05]}  Qh1# {[%clk 0:00:35]} 0-1


[Site "https://www.chess.com"]

[Event "Titled Tuesday Blitz May 23 Late 2023"]
[White "Amburgy, Ryan"]
[Black "Prydun, Andriy"]
[WhiteFideId "30924820"]
[BlackFideId "14145898"]
[WhiteElo "2134"]
[BlackElo "2164"]
[Result "1-0"]
[Round "04"]
[TimeControl "180+2"]
[Date "2023.05.23"]
[WhiteClock "0:00:38"]
[BlackClock "0:00:20"]

1. d4 {[%clk 0:03:00]}  Nf6 {[%clk 0:02:59]} 2. c4 {[%clk 0:02:58]}  e6 {[%clk 0:02:58]} 3. Nf3 {[%clk 0:02:58]}  d5 {[%clk 0:02:57]} 4. Nc3 {[%clk 0:02:59]}  Be7 {[%clk 0:02:57]} 5. Bf4 {[%clk 0:02:59]}  a6 {[%clk 0:02:46]} 6. e3 {[%clk 0:02:52]}  Nbd7 {[%clk 0:02:43]} 7. cxd5 {[%clk 0:02:37]}  Nxd5 {[%clk 0:02:41]} 8. Nxd5 {[%clk 0:02:36]}  exd5 {[%clk 0:02:41]} 9. a3 {[%clk 0:02:36]}  O-O {[%clk 0:02:38]} 10. Bd3 {[%clk 0:02:36]}  c5 {[%clk 0:02:04]} 11. dxc5 {[%clk 0:02:07]}  Nxc5 {[%clk 0:01:59]} 12. Bc2 {[%clk 0:02:07]}  Bg4 {[%clk 0:01:45]} 13. O-O {[%clk 0:02:07]}  Rc8 {[%clk 0:01:32]} 14. h3 {[%clk 0:01:40]}  Bh5 {[%clk 0:01:29]} 15. g4 {[%clk 0:00:56]}  Bg6 {[%clk 0:01:28]} 16. Bxg6 {[%clk 0:00:57]}  fxg6 {[%clk 0:01:05]} 17. Nd4 {[%clk 0:00:57]}  Bd6 {[%clk 0:00:52]} 18. b4 {[%clk 0:00:53]}  Bxf4 {[%clk 0:00:44]} 19. exf4 {[%clk 0:00:54]}  Ne4 {[%clk 0:00:39]} 20. Ne6 {[%clk 0:00:51]}  Qh4 {[%clk 0:00:34]} 21. Qxd5 {[%clk 0:00:39]}  Nc3 {[%clk 0:00:31]} 22. Qb3 {[%clk 0:00:40]}  Qxh3 {[%clk 0:00:20]} 23. Ng5+ {[%clk 0:00:38]} 1-0


[Site "https://www.chess.com"]

[Event "Titled Tuesday Blitz May 23 Late 2023"]
[White "Rosen, Eric"]
[Black "Arnold, Ken"]
[WhiteFideId "2032562"]
[BlackFideId "2056836"]
[WhiteElo "2331"]
[BlackElo "2410"]
[Result "1-0"]
[Round "04"]
[TimeControl "180+2"]
[Date "2023.05.23"]
[WhiteClock "0:00:18"]
[BlackClock "0:00:09"]

1. d4 {[%clk 0:03:00]}  Nf6 {[%clk 0:02:59]} 2. Bf4 {[%clk 0:03:00]}  d5 {[%clk 0:02:59]} 3. e3 {[%clk 0:03:01]}  Nbd7 {[%clk 0:02:58]} 4. Nd2 {[%clk 0:02:58]}  e6 {[%clk 0:02:58]} 5. Ngf3 {[%clk 0:02:59]}  Bb4 {[%clk 0:02:58]} 6. c3 {[%clk 0:02:58]}  Ba5 {[%clk 0:02:58]} 7. Bd3 {[%clk 0:02:49]}  c6 {[%clk 0:02:37]} 8. e4 {[%clk 0:02:40]}  dxe4 {[%clk 0:02:36]} 9. Nxe4 {[%clk 0:02:40]}  Nxe4 {[%clk 0:02:35]} 10. Bxe4 {[%clk 0:02:41]}  Nf6 {[%clk 0:02:35]} 11. Bc2 {[%clk 0:02:41]}  Bc7 {[%clk 0:02:35]} 12. Ne5 {[%clk 0:02:40]}  Nd5 {[%clk 0:02:31]} 13. Bg3 {[%clk 0:02:41]}  Ne7 {[%clk 0:02:20]} 14. Qh5 {[%clk 0:02:34]}  Bxe5 {[%clk 0:02:01]} 15. Bxe5 {[%clk 0:02:31]}  Qd5 {[%clk 0:01:53]} 16. Qg4 {[%clk 0:02:19]}  Ng6 {[%clk 0:01:49]} 17. Bxg7 {[%clk 0:02:10]}  Rg8 {[%clk 0:01:46]} 18. Bf6 {[%clk 0:02:10]}  Ne7 {[%clk 0:01:40]} 19. Qh4 {[%clk 0:01:45]}  Qxg2 {[%clk 0:01:30]} 20. Be4 {[%clk 0:01:44]}  Nf5 {[%clk 0:01:12]} 21. Bxg2 {[%clk 0:01:33]}  Nxh4 {[%clk 0:01:10]} 22. Bxh4 {[%clk 0:01:34]}  Rxg2 {[%clk 0:01:09]} 23. Bg3 {[%clk 0:01:35]}  e5 {[%clk 0:01:04]} 24. dxe5 {[%clk 0:00:40]}  Bg4 {[%clk 0:00:56]} 25. Kd2 {[%clk 0:00:40]}  Bf3 {[%clk 0:00:27]} 26. Rhe1 {[%clk 0:00:35]}  h5 {[%clk 0:00:25]} 27. Ke3 {[%clk 0:00:35]}  Bd5 {[%clk 0:00:24]} 28. h4 {[%clk 0:00:33]}  O-O-O {[%clk 0:00:19]} 29. b3 {[%clk 0:00:25]}  b5 {[%clk 0:00:19]} 30. Rad1 {[%clk 0:00:22]}  Kb7 {[%clk 0:00:17]} 31. c4 {[%clk 0:00:18]}  bxc4 {[%clk 0:00:17]} 32. bxc4 {[%clk 0:00:19]}  Rg8 {[%clk 0:00:09]} 33. cxd5 {[%clk 0:00:18]} 1-0


[Site "https://www.chess.com"]

[Event "Titled Tuesday Blitz May 23 Late 2023"]
[White "koncheto"]
[Black "Wang, Alexander J"]
[BlackFideId "30955270"]
[WhiteElo "2633"]
[BlackElo "2289"]
[Result "1-0"]
[Round "04"]
[TimeControl "180+2"]
[Date "2023.05.23"]
[WhiteClock "0:01:23"]
[BlackClock "0:01:15"]

1. e4 {[%clk 0:02:17]}  c5 {[%clk 0:02:59]} 2. Nf3 {[%clk 0:02:17]}  d6 {[%clk 0:02:54]} 3. d4 {[%clk 0:02:17]}  cxd4 {[%clk 0:02:55]} 4. Nxd4 {[%clk 0:02:18]}  Nf6 {[%clk 0:02:54]} 5. f3 {[%clk 0:02:13]}  g6 {[%clk 0:02:47]} 6. c4 {[%clk 0:02:12]}  Bg7 {[%clk 0:02:41]} 7. Nc3 {[%clk 0:02:12]}  Nc6 {[%clk 0:02:31]} 8. Be3 {[%clk 0:02:09]}  O-O {[%clk 0:02:26]} 9. Be2 {[%clk 0:02:08]}  Ne5 {[%clk 0:02:11]} 10. O-O {[%clk 0:02:07]}  Be6 {[%clk 0:02:11]} 11. b3 {[%clk 0:02:07]}  Rc8 {[%clk 0:02:10]} 12. Rc1 {[%clk 0:02:06]}  a6 {[%clk 0:02:10]} 13. Qd2 {[%clk 0:02:05]}  Nfd7 {[%clk 0:02:08]} 14. Rfd1 {[%clk 0:02:05]}  Nc5 {[%clk 0:02:07]} 15. h3 {[%clk 0:02:02]}  Nc6 {[%clk 0:02:06]} 16. f4 {[%clk 0:02:01]}  Nxd4 {[%clk 0:02:05]} 17. Bxd4 {[%clk 0:02:01]}  Qc7 {[%clk 0:02:03]} 18. Bf3 {[%clk 0:02:00]}  Nd7 {[%clk 0:01:53]} 19. Bf2 {[%clk 0:01:55]}  f5 {[%clk 0:01:48]} 20. exf5 {[%clk 0:01:50]}  Bxf5 {[%clk 0:01:44]} 21. Nd5 {[%clk 0:01:48]}  Qd8 {[%clk 0:01:41]} 22. Ne3 {[%clk 0:01:48]}  Nc5 {[%clk 0:01:40]} 23. b4 {[%clk 0:01:33]}  Ne4 {[%clk 0:01:36]} 24. Qd5+ {[%clk 0:01:32]}  e6 {[%clk 0:01:36]} 25. Qxb7 {[%clk 0:01:30]}  Nxf2 {[%clk 0:01:24]} 26. Kxf2 {[%clk 0:01:29]}  Qh4+ {[%clk 0:01:24]} 27. g3 {[%clk 0:01:27]}  Qxh3 {[%clk 0:01:24]} 28. Rh1 {[%clk 0:01:26]}  Bd4 {[%clk 0:01:14]} 29. Rxh3 {[%clk 0:01:24]}  Bxh3 {[%clk 0:01:15]} 30. Rh1 {[%clk 0:01:24]}  Bf5 {[%clk 0:01:15]} 31. Qxh7# {[%clk 0:01:23]} 1-0


[Site "https://www.chess.com"]

[Event "Titled Tuesday Blitz May 23 Late 2023"]
[White "Cagara, Paulina"]
[Black "Chor, Kevin"]
[WhiteFideId "1124870"]
[BlackFideId "2090740"]
[WhiteElo "1967"]
[BlackElo "2628"]
[Result "0-1"]
[Round "04"]
[TimeControl "180+2"]
[Date "2023.05.23"]
[WhiteClock "0:00:52"]
[BlackClock "0:00:30"]

1. e4 {[%clk 0:03:00]}  c5 {[%clk 0:02:59]} 2. Nc3 {[%clk 0:03:00]}  Nc6 {[%clk 0:02:59]} 3. Bb5 {[%clk 0:02:59]}  Nd4 {[%clk 0:02:58]} 4. Bc4 {[%clk 0:02:58]}  e6 {[%clk 0:02:52]} 5. Nf3 {[%clk 0:02:57]}  Ne7 {[%clk 0:02:43]} 6. O-O {[%clk 0:02:54]}  Nec6 {[%clk 0:02:41]} 7. d3 {[%clk 0:02:54]}  Be7 {[%clk 0:02:39]} 8. a4 {[%clk 0:02:53]}  O-O {[%clk 0:02:38]} 9. Nxd4 {[%clk 0:02:39]}  cxd4 {[%clk 0:02:17]} 10. Ne2 {[%clk 0:02:38]}  d5 {[%clk 0:02:18]} 11. exd5 {[%clk 0:02:37]}  exd5 {[%clk 0:02:19]} 12. Bb3 {[%clk 0:02:36]}  Bg4 {[%clk 0:02:18]} 13. f3 {[%clk 0:02:35]}  Bf5 {[%clk 0:02:13]} 14. Nf4 {[%clk 0:02:32]}  Nb4 {[%clk 0:02:11]} 15. Bd2 {[%clk 0:02:30]}  Re8 {[%clk 0:02:02]} 16. Bxb4 {[%clk 0:02:28]}  Bxb4 {[%clk 0:02:02]} 17. Bxd5 {[%clk 0:02:23]}  Bd6 {[%clk 0:01:58]} 18. Be4 {[%clk 0:02:19]}  Bd7 {[%clk 0:01:16]} 19. Ne2 {[%clk 0:01:59]}  Qh4 {[%clk 0:01:01]} 20. g3 {[%clk 0:01:53]}  Qh5 {[%clk 0:00:59]} 21. f4 {[%clk 0:01:51]}  Bg4 {[%clk 0:00:53]} 22. Re1 {[%clk 0:01:41]}  Bc5 {[%clk 0:00:51]} 23. Qd2 {[%clk 0:01:28]}  Rxe4 {[%clk 0:00:44]} 24. dxe4 {[%clk 0:01:23]}  d3+ {[%clk 0:00:44]} 25. Nd4 {[%clk 0:01:06]}  Bxd4+ {[%clk 0:00:42]} 26. Re3 {[%clk 0:01:06]}  Qc5 {[%clk 0:00:38]} 27. Re1 {[%clk 0:01:04]}  dxc2 {[%clk 0:00:35]} 28. Qc1 {[%clk 0:01:03]}  Bxe3+ {[%clk 0:00:29]} 29. Rxe3 {[%clk 0:00:52]}  Rd8 {[%clk 0:00:30]} 0-1


[Site "https://www.chess.com"]

[Event "Titled Tuesday Blitz May 23 Late 2023"]
[White "Gokerkan, Cem Kaan"]
[Black "Ismayil, Malak"]
[WhiteFideId "6336760"]
[BlackFideId "13412604"]
[WhiteElo "2365"]
[BlackElo "1868"]
[Result "1-0"]
[Round "04"]
[TimeControl "180+2"]
[Date "2023.05.23"]
[WhiteClock "0:00:12"]
[BlackClock "0:00:00"]

1. e4 {[%clk 0:03:00]}  e5 {[%clk 0:02:59]} 2. Nc3 {[%clk 0:03:00]}  Nc6 {[%clk 0:02:59]} 3. g3 {[%clk 0:02:59]}  Bc5 {[%clk 0:02:58]} 4. Bg2 {[%clk 0:02:59]}  Nf6 {[%clk 0:02:59]} 5. Nge2 {[%clk 0:03:00]}  O-O {[%clk 0:02:59]} 6. O-O {[%clk 0:02:59]}  d6 {[%clk 0:03:00]} 7. d3 {[%clk 0:02:59]}  h6 {[%clk 0:02:58]} 8. h3 {[%clk 0:02:59]}  Be6 {[%clk 0:02:56]} 9. Kh2 {[%clk 0:02:58]}  d5 {[%clk 0:02:56]} 10. f4 {[%clk 0:02:54]}  dxe4 {[%clk 0:02:54]} 11. f5 {[%clk 0:02:43]}  exd3 {[%clk 0:02:49]} 12. fxe6 {[%clk 0:02:42]}  dxe2 {[%clk 0:02:49]} 13. exf7+ {[%clk 0:02:41]}  Rxf7 {[%clk 0:02:41]} 14. Qxe2 {[%clk 0:02:42]}  Kh8 {[%clk 0:02:10]} 15. Qc4 {[%clk 0:02:41]}  Qe7 {[%clk 0:02:08]} 16. Ne4 {[%clk 0:02:05]}  Bb6 {[%clk 0:01:51]} 17. Bd2 {[%clk 0:02:00]}  Raf8 {[%clk 0:01:48]} 18. Nc3 {[%clk 0:01:53]}  Nd4 {[%clk 0:01:44]} 19. Na4 {[%clk 0:01:32]}  c6 {[%clk 0:01:25]} 20. Bb4 {[%clk 0:01:18]}  c5 {[%clk 0:01:24]} 21. Bd2 {[%clk 0:00:55]}  Qe6 {[%clk 0:00:58]} 22. Qxe6 {[%clk 0:00:48]}  Nxe6 {[%clk 0:00:59]} 23. Nxb6 {[%clk 0:00:46]}  axb6 {[%clk 0:00:59]} 24. c3 {[%clk 0:00:47]}  Rd7 {[%clk 0:00:54]} 25. Be3 {[%clk 0:00:46]}  Rfd8 {[%clk 0:00:53]} 26. a4 {[%clk 0:00:40]}  Nd5 {[%clk 0:00:45]} 27. Bc1 {[%clk 0:00:40]}  c4 {[%clk 0:00:38]} 28. Re1 {[%clk 0:00:40]}  Nc5 {[%clk 0:00:36]} 29. Rxe5 {[%clk 0:00:39]}  Nd3 {[%clk 0:00:31]} 30. Re2 {[%clk 0:00:34]}  Ra8 {[%clk 0:00:21]} 31. Bd2 {[%clk 0:00:33]}  Nxb2 {[%clk 0:00:19]} 32. Bxh6 {[%clk 0:00:32]}  gxh6 {[%clk 0:00:16]} 33. Rxb2 {[%clk 0:00:32]}  Nxc3 {[%clk 0:00:17]} 34. Rc2 {[%clk 0:00:25]}  Rxa4 {[%clk 0:00:16]} 35. Re1 {[%clk 0:00:20]}  Nd5 {[%clk 0:00:09]} 36. Re5 {[%clk 0:00:20]}  Nf6 {[%clk 0:00:09]} 37. Re6 {[%clk 0:00:21]}  Kg7 {[%clk 0:00:09]} 38. Rf2 {[%clk 0:00:21]}  Rf7 {[%clk 0:00:07]} 39. Rf4 {[%clk 0:00:21]}  b5 {[%clk 0:00:06]} 40. Rb6 {[%clk 0:00:21]}  c3 {[%clk 0:00:04]} 41. Rf1 {[%clk 0:00:18]}  b4 {[%clk 0:00:00]} 42. Rc1 {[%clk 0:00:12]} 1-0


[Site "https://www.chess.com"]

[Event "Titled Tuesday Blitz May 23 Late 2023"]
[White "Csonka, Balazs"]
[Black "Machidon, Cristi"]
[WhiteFideId "742910"]
[BlackFideId "13904590"]
[WhiteElo "2404"]
[BlackElo "2355"]
[Result "1-0"]
[Round "04"]
[TimeControl "180+2"]
[Date "2023.05.23"]
[WhiteClock "0:00:11"]
[BlackClock "0:00:01"]

1. d4 {[%clk 0:03:00]}  d5 {[%clk 0:02:59]} 2. c4 {[%clk 0:02:59]}  c6 {[%clk 0:02:59]} 3. Nf3 {[%clk 0:02:56]}  e6 {[%clk 0:02:59]} 4. Qc2 {[%clk 0:02:35]}  f5 {[%clk 0:02:56]} 5. Bf4 {[%clk 0:02:33]}  Bd6 {[%clk 0:02:53]} 6. e3 {[%clk 0:02:28]}  Nf6 {[%clk 0:02:50]} 7. Nc3 {[%clk 0:02:26]}  O-O {[%clk 0:02:49]} 8. Bd3 {[%clk 0:02:21]}  Ne4 {[%clk 0:02:48]} 9. O-O {[%clk 0:02:13]}  Qe7 {[%clk 0:02:18]} 10. Bxd6 {[%clk 0:01:31]}  Nxd6 {[%clk 0:02:15]} 11. Ne5 {[%clk 0:01:24]}  Nd7 {[%clk 0:02:13]} 12. c5 {[%clk 0:00:57]}  Nf7 {[%clk 0:02:05]} 13. Nxd7 {[%clk 0:00:55]}  Bxd7 {[%clk 0:02:05]} 14. f4 {[%clk 0:00:55]}  b6 {[%clk 0:01:57]} 15. b4 {[%clk 0:00:56]}  a5 {[%clk 0:01:56]} 16. Na4 {[%clk 0:00:50]}  b5 {[%clk 0:01:22]} 17. Nb6 {[%clk 0:00:49]}  Ra7 {[%clk 0:01:23]} 18. a4 {[%clk 0:00:48]}  axb4 {[%clk 0:00:53]} 19. axb5 {[%clk 0:00:47]}  Rb7 {[%clk 0:00:38]} 20. Nxd7 {[%clk 0:00:40]}  Qxd7 {[%clk 0:00:36]} 21. b6 {[%clk 0:00:41]}  g5 {[%clk 0:00:26]} 22. Rfb1 {[%clk 0:00:30]}  gxf4 {[%clk 0:00:18]} 23. exf4 {[%clk 0:00:31]}  Nh8 {[%clk 0:00:19]} 24. Rxb4 {[%clk 0:00:31]}  Ng6 {[%clk 0:00:20]} 25. g3 {[%clk 0:00:29]}  Qg7 {[%clk 0:00:19]} 26. Kh1 {[%clk 0:00:30]}  Kh8 {[%clk 0:00:18]} 27. Ba6 {[%clk 0:00:17]}  Rbb8 {[%clk 0:00:16]} 28. Be2 {[%clk 0:00:17]}  Rg8 {[%clk 0:00:15]} 29. Ra7 {[%clk 0:00:16]}  Qf6 {[%clk 0:00:10]} 30. Qd2 {[%clk 0:00:14]}  Rg7 {[%clk 0:00:05]} 31. Rxg7 {[%clk 0:00:12]}  Qxg7 {[%clk 0:00:06]} 32. Ra4 {[%clk 0:00:12]}  Rg8 {[%clk 0:00:05]} 33. Ra7 {[%clk 0:00:12]}  Qf6 {[%clk 0:00:04]} 34. b7 {[%clk 0:00:12]}  Rb8 {[%clk 0:00:04]} 35. Ra8 {[%clk 0:00:12]}  Qf8 {[%clk 0:00:01]} 36. Qa5 {[%clk 0:00:11]} 1-0


[Site "https://www.chess.com"]

[Event "Titled Tuesday Blitz May 23 Late 2023"]
[White "Shapiro, Viktor"]
[Black "Fishbein, Alexander"]
[WhiteFideId "4175700"]
[BlackFideId "2000377"]
[WhiteElo "2152"]
[BlackElo "2415"]
[Result "1-0"]
[Round "04"]
[TimeControl "180+2"]
[Date "2023.05.23"]
[WhiteClock "0:01:29"]
[BlackClock "0:00:57"]

1. c4 {[%clk 0:03:00]}  Nf6 {[%clk 0:02:58]} 2. Nc3 {[%clk 0:03:01]}  g6 {[%clk 0:02:57]} 3. Nf3 {[%clk 0:02:59]}  Bg7 {[%clk 0:02:57]} 4. d4 {[%clk 0:03:00]}  d6 {[%clk 0:02:57]} 5. Bg5 {[%clk 0:03:00]}  O-O {[%clk 0:02:57]} 6. e3 {[%clk 0:03:00]}  Bf5 {[%clk 0:02:56]} 7. Bd3 {[%clk 0:02:59]}  Bxd3 {[%clk 0:02:55]} 8. Qxd3 {[%clk 0:02:59]}  Nc6 {[%clk 0:02:55]} 9. O-O {[%clk 0:02:59]}  a6 {[%clk 0:02:51]} 10. a3 {[%clk 0:02:55]}  a5 {[%clk 0:02:50]} 11. Rab1 {[%clk 0:02:51]}  e5 {[%clk 0:02:43]} 12. Rfd1 {[%clk 0:02:48]}  exd4 {[%clk 0:02:41]} 13. exd4 {[%clk 0:02:44]}  Qd7 {[%clk 0:02:36]} 14. b4 {[%clk 0:02:38]}  axb4 {[%clk 0:02:36]} 15. axb4 {[%clk 0:02:38]}  h6 {[%clk 0:02:16]} 16. Bxf6 {[%clk 0:02:23]}  Bxf6 {[%clk 0:02:15]} 17. Nd5 {[%clk 0:02:23]}  Bg7 {[%clk 0:02:13]} 18. b5 {[%clk 0:02:24]}  Ne7 {[%clk 0:02:10]} 19. Nxe7+ {[%clk 0:02:23]}  Qxe7 {[%clk 0:02:10]} 20. Re1 {[%clk 0:02:16]}  Qd7 {[%clk 0:02:06]} 21. Qe4 {[%clk 0:02:14]}  d5 {[%clk 0:01:53]} 22. Qxd5 {[%clk 0:02:07]}  Qxd5 {[%clk 0:01:52]} 23. cxd5 {[%clk 0:02:08]}  Rad8 {[%clk 0:01:42]} 24. Re7 {[%clk 0:02:08]}  Rxd5 {[%clk 0:01:40]} 25. Rxc7 {[%clk 0:02:07]}  Bxd4 {[%clk 0:01:39]} 26. Rxb7 {[%clk 0:01:59]}  Bc5 {[%clk 0:01:36]} 27. g3 {[%clk 0:01:44]}  Rfd8 {[%clk 0:01:34]} 28. Kg2 {[%clk 0:01:40]}  g5 {[%clk 0:01:31]} 29. h3 {[%clk 0:01:40]}  h5 {[%clk 0:01:31]} 30. g4 {[%clk 0:01:40]}  hxg4 {[%clk 0:01:26]} 31. hxg4 {[%clk 0:01:40]}  f5 {[%clk 0:01:26]} 32. Nxg5 {[%clk 0:01:33]}  Rd2 {[%clk 0:01:21]} 33. Rf1 {[%clk 0:01:32]}  fxg4 {[%clk 0:01:05]} 34. Ne6 {[%clk 0:01:31]}  R8d5 {[%clk 0:00:57]} 35. Rg7+ {[%clk 0:01:29]} 1-0


[Site "https://www.chess.com"]

[Event "Titled Tuesday Blitz May 23 Late 2023"]
[White "Bagrationi, Alexander"]
[Black "reevecanada"]
[WhiteFideId "14104954"]
[WhiteElo "2398"]
[BlackElo "2428"]
[Result "0-1"]
[Round "04"]
[TimeControl "180+2"]
[Date "2023.05.23"]
[WhiteClock "0:00:03"]
[BlackClock "0:00:50"]

1. e4 {[%clk 0:03:00]}  c5 {[%clk 0:02:54]} 2. Be2 {[%clk 0:02:59]}  d6 {[%clk 0:02:52]} 3. f4 {[%clk 0:02:59]}  Nf6 {[%clk 0:02:52]} 4. d3 {[%clk 0:02:58]}  Nc6 {[%clk 0:02:51]} 5. c3 {[%clk 0:02:56]}  e6 {[%clk 0:02:51]} 6. Nf3 {[%clk 0:02:56]}  g6 {[%clk 0:02:48]} 7. O-O {[%clk 0:02:55]}  Bg7 {[%clk 0:02:47]} 8. Kh1 {[%clk 0:02:55]}  b6 {[%clk 0:02:48]} 9. Be3 {[%clk 0:02:54]}  Qc7 {[%clk 0:02:47]} 10. Nbd2 {[%clk 0:02:54]}  Bb7 {[%clk 0:02:47]} 11. d4 {[%clk 0:02:55]}  Ne7 {[%clk 0:02:44]} 12. e5 {[%clk 0:02:52]}  Nfd5 {[%clk 0:02:41]} 13. Bg1 {[%clk 0:02:27]}  Nxf4 {[%clk 0:02:38]} 14. Bb5+ {[%clk 0:02:22]}  Bc6 {[%clk 0:02:37]} 15. exd6 {[%clk 0:02:20]}  Qxd6 {[%clk 0:02:36]} 16. dxc5 {[%clk 0:02:12]}  bxc5 {[%clk 0:02:34]} 17. Bxc6+ {[%clk 0:01:58]}  Qxc6 {[%clk 0:02:31]} 18. Nc4 {[%clk 0:01:43]}  O-O {[%clk 0:02:29]} 19. Qd6 {[%clk 0:01:38]}  Nfd5 {[%clk 0:02:02]} 20. Qxc6 {[%clk 0:01:33]}  Nxc6 {[%clk 0:02:00]} 21. Bxc5 {[%clk 0:01:32]}  Rfc8 {[%clk 0:02:00]} 22. Ba3 {[%clk 0:01:30]}  Bf8 {[%clk 0:01:49]} 23. Nd6 {[%clk 0:01:26]}  Rc7 {[%clk 0:01:47]} 24. Ng5 {[%clk 0:01:22]}  Nd8 {[%clk 0:01:41]} 25. Rad1 {[%clk 0:00:51]}  Rb8 {[%clk 0:01:28]} 26. Ne8 {[%clk 0:00:40]}  Rcb7 {[%clk 0:01:22]} 27. Bxf8 {[%clk 0:00:17]}  Kxf8 {[%clk 0:01:23]} 28. Nd6 {[%clk 0:00:15]}  Rd7 {[%clk 0:01:20]} 29. Nc4 {[%clk 0:00:12]}  Rc7 {[%clk 0:01:15]} 30. Rd4 {[%clk 0:00:11]}  Rxc4 {[%clk 0:01:12]} 31. Rxc4 {[%clk 0:00:11]}  Ne3 {[%clk 0:01:11]} 32. Rcf4 {[%clk 0:00:07]}  Nxf1 {[%clk 0:01:10]} 33. Rxf1 {[%clk 0:00:08]}  Rxb2 {[%clk 0:01:10]} 34. Nxh7+ {[%clk 0:00:08]}  Ke7 {[%clk 0:01:05]} 35. a4 {[%clk 0:00:07]}  Ra2 {[%clk 0:01:04]} 36. Ng5 {[%clk 0:00:07]}  Rxa4 {[%clk 0:01:04]} 37. Nf3 {[%clk 0:00:08]}  Rc4 {[%clk 0:01:04]} 38. Rc1 {[%clk 0:00:08]}  Nc6 {[%clk 0:01:04]} 39. Kg1 {[%clk 0:00:09]}  a5 {[%clk 0:00:59]} 40. Rb1 {[%clk 0:00:09]}  Rxc3 {[%clk 0:00:59]} 41. Rb7+ {[%clk 0:00:08]}  Kf6 {[%clk 0:01:00]} 42. Rc7 {[%clk 0:00:08]}  a4 {[%clk 0:00:59]} 43. h4 {[%clk 0:00:08]}  a3 {[%clk 0:00:55]} 44. Ng5 {[%clk 0:00:09]}  Rc1+ {[%clk 0:00:55]} 45. Kh2 {[%clk 0:00:05]}  a2 {[%clk 0:00:54]} 46. Rxf7+ {[%clk 0:00:05]}  Ke5 {[%clk 0:00:54]} 47. Nf3+ {[%clk 0:00:05]}  Kd6 {[%clk 0:00:54]} 48. Rf6 {[%clk 0:00:03]}  a1=Q {[%clk 0:00:54]} 49. Rxg6 {[%clk 0:00:03]}  Ne5 {[%clk 0:00:54]} 50. Ng5 {[%clk 0:00:03]}  Rh1+ {[%clk 0:00:51]} 51. Kg3 {[%clk 0:00:03]}  Qe1+ {[%clk 0:00:51]} 52. Kf4 {[%clk 0:00:03]}  Qxh4+ {[%clk 0:00:50]} 53. Ke3 {[%clk 0:00:03]}  Re1+ {[%clk 0:00:50]} 54. Kd2 {[%clk 0:00:03]}  Qf2+ {[%clk 0:00:50]} 55. Kc3 {[%clk 0:00:03]}  Qc5+ {[%clk 0:00:50]} 56. Kd2 {[%clk 0:00:03]}  Qc1# {[%clk 0:00:50]} 0-1


[Site "https://www.chess.com"]

[Event "Titled Tuesday Blitz May 23 Late 2023"]
[White "Lima, Kleyton Alcantara"]
[Black "cryptoguru02"]
[WhiteFideId "22718397"]
[WhiteElo "2009"]
[BlackElo "2568"]
[Result "1-0"]
[Round "04"]
[TimeControl "180+2"]
[Date "2023.05.23"]
[WhiteClock "0:01:13"]
[BlackClock "0:00:12"]

1. d4 {[%clk 0:02:57]}  d5 {[%clk 0:02:59]} 2. c4 {[%clk 0:02:57]}  c6 {[%clk 0:03:00]} 3. Nf3 {[%clk 0:02:57]}  Nf6 {[%clk 0:02:59]} 4. e3 {[%clk 0:02:56]}  Bg4 {[%clk 0:02:59]} 5. h3 {[%clk 0:02:45]}  Bh5 {[%clk 0:02:59]} 6. g4 {[%clk 0:02:44]}  Bg6 {[%clk 0:02:59]} 7. Ne5 {[%clk 0:02:45]}  e6 {[%clk 0:02:57]} 8. Bg2 {[%clk 0:02:36]}  Nbd7 {[%clk 0:02:53]} 9. f4 {[%clk 0:02:30]}  Nxe5 {[%clk 0:02:38]} 10. fxe5 {[%clk 0:02:28]}  Ne4 {[%clk 0:02:31]} 11. O-O {[%clk 0:02:26]}  h5 {[%clk 0:02:31]} 12. Nc3 {[%clk 0:02:21]}  hxg4 {[%clk 0:02:25]} 13. Qxg4 {[%clk 0:02:19]}  Rh4 {[%clk 0:02:23]} 14. Qf3 {[%clk 0:02:13]}  Nxc3 {[%clk 0:02:09]} 15. bxc3 {[%clk 0:02:09]}  Qd7 {[%clk 0:01:53]} 16. Qf2 {[%clk 0:02:04]}  Rh7 {[%clk 0:01:46]} 17. cxd5 {[%clk 0:02:01]}  exd5 {[%clk 0:01:43]} 18. c4 {[%clk 0:02:02]}  dxc4 {[%clk 0:01:39]} 19. e4 {[%clk 0:01:55]}  Bb4 {[%clk 0:01:27]} 20. Bg5 {[%clk 0:01:45]}  Be7 {[%clk 0:01:17]} 21. Bf4 {[%clk 0:01:34]}  O-O-O {[%clk 0:01:14]} 22. d5 {[%clk 0:01:33]}  b6 {[%clk 0:00:55]} 23. a4 {[%clk 0:01:27]}  Rxh3 {[%clk 0:00:45]} 24. e6 {[%clk 0:01:18]}  Qc7 {[%clk 0:00:16]} 25. Bxc7 {[%clk 0:01:17]}  Rd3 {[%clk 0:00:16]} 26. Bxd8 {[%clk 0:01:15]}  Kxd8 {[%clk 0:00:14]} 27. exf7 {[%clk 0:01:13]}  Bc5 {[%clk 0:00:12]} 28. f8=Q+ {[%clk 0:01:13]} 1-0


[Site "https://www.chess.com"]